Cogmind - Beta 15 @@@ ROGUE MODE // 2025.06.14 @ 16:27:48 Player: Cracklepappy Result: Destroyed by P-60 Hacker with Shock Rifle Performance ------------- Evolutions (2) 1000 Regions Visited (12) 2400 Robots Destroyed (265) 1325 Value Destroyed (10283) 10283 Prototype IDs (9) 180 Alien Tech Used (0) 0 Bonus (4851) 4851 TOTAL SCORE: 20039 Bonus ------- High Alert Combat Kills 1186 Follower Combat Kills 365 Entered Garrisons 800 Used RIF Installer 2500 Cogmind --------- Core Integrity 0/550 Matter 273/300 Energy 150/150 System Corruption 8% Temperature Hot (229) Movement Rolling (150) Ox4 Location -8/Garrison Parts ------- > --- POWER (1) -------- Micro Nuclear Core > --- PROPULSION (3) --- Improved Medium Treads Armored Wheel Armored Wheel > --- UTILITY (3) ------ Improved Heat Sink Huge Storage Unit Medium Armor Plating > --- WEAPON (4) ------- Heavy Ion Cannon Heavy Ion Cannon High-powered Shotgun Plasma Cutter > --- INVENTORY (25) --- Light Nuclear Core Light Nuclear Core Light Treads Improved Flight Unit Improved Flight Unit Improved Flight Unit Improved VTOL Module Improved VTOL Module Improved Heat Sink High-capacity Matter Pod (171) Advanced Weight Redist. System Seismic Detector Recoil Stabilizer Medium Armor Plating Graphene Brace Hacking Suite Relay Coupler [Hunter] (16) Heavy Ion Cannon Heavy Ion Cannon Heavy Ion Cannon Heavy Plasma Cannon Missile Launcher Improved Datajack Remote Datajack Makeshift Hammer Peak State ------------ > --- POWER ------------ Micro Nuclear Core > --- PROPULSION ------- Improved Medium Treads Armored Wheel Armored Wheel > --- UTILITY ---------- Improved Heat Sink Huge Storage Unit Relay Coupler [Sentry] > --- WEAPON ----------- Heavy Ion Cannon Heavy Ion Cannon Heavy Ion Cannon Heavy Plasma Cannon > --- INVENTORY -------- Light Nuclear Core Light Nuclear Core Improved Flight Unit Improved Flight Unit Improved Flight Unit Improved VTOL Module Improved VTOL Module Improved Heat Sink High-capacity Matter Pod Advanced Weight Redist. System Seismic Detector Recoil Stabilizer Medium Armor Plating Medium Armor Plating Graphene Brace Hacking Suite Relay Coupler [Hunter] Heavy Ion Cannon Heavy Ion Cannon High-powered Shotgun Missile Launcher Improved Datajack Remote Datajack Plasma Cutter Makeshift Hammer [Rating: 46] Favorites ----------- Power Cooled Ion Engine Engine Cooled Ion Engine Power Core Micro Nuclear Core Propulsion Light Treads Treads Light Treads Wheel Armored Wheel Flight Unit Improved VTOL Module Utility Huge Storage Unit Device Shield Generator Storage Huge Storage Unit Processor Advanced Visual Processing Unit Hackware Hacking Suite Protection Medium Armor Plating Weapon Improved Assault Rifle Energy Gun Medium Laser Energy Cannon Beam Cannon Ballistic Gun Improved Assault Rifle Ballistic Cannon Assault Cannon Launcher Grenade Launcher Special Weapon Remote Datajack Impact Weapon Makeshift Hammer Slashing Weapon Katana Special Melee Weapon Improved Datajack Build | -11 -10 -10 -9 -9 -8 -8 -8 -8 -8 -8 -8 -8 ------- Run | Yrd Mat Min Mat Min Mat Gar Mat Gar Mat Gar Mat Gar Slots Evolved 4 | . . . 2 . 2 . . . . . . . Power . | . . . . . . . . . . . . . Propulsion 1 | . . . 1 . . . . . . . . . Utility 1 | . . . . . 1 . . . . . . . Weapon 2 | . . . 1 . 1 . . . . . . . Parts Attached 133 | 9 4 3 25 1 13 6 12 27 1 21 10 1 Power 7 | 1 . . 3 . . . . 1 1 . 1 . Engine 6 | 1 . . 3 . . . . 1 1 . . . Core 1 | . . . . . . . . . . . 1 . Reactor . | . . . . . . . . . . . . . Propulsion 38 | 2 . . 7 . 7 2 7 11 . 1 1 . Treads 32 | 2 . . 7 . 6 2 7 8 . . . . Leg . | . . . . . . . . . . . . . Wheel 5 | . . . . . . . . 3 . 1 1 . Hover . | . . . . . . . . . . . . . Flight 1 | . . . . . 1 . . . . . . . Utility 43 | 3 2 1 7 . 3 2 1 7 . 10 7 . Device 15 | 2 . . 4 . 2 . . 3 . 3 1 . Storage 3 | 1 1 1 . . . . . . . . . . Processor 2 | . . . 1 . . . . . . 1 . . Hackware 13 | . . . . . . 1 . 1 . 6 5 . Protection 10 | . 1 . 2 . 1 1 1 3 . . 1 . Artifact . | . . . . . . . . . . . . . Weapon 45 | 3 2 2 8 1 3 2 4 8 . 10 1 1 Energy Gun 7 | 1 . . 1 . . . . . . 5 . . Energy Cannon 8 | . 1 . 3 . . . . 1 . 3 . . Ballistic Gun 19 | 2 . . 3 . 3 1 3 5 . 1 . 1 Ballistic Cannon 2 | . . . 1 . . . 1 . . . . . Launcher 3 | . . 2 . . . . . . . . 1 . Special Weapon 3 | . 1 . . . . 1 . . . 1 . . Impact Weapon 1 | . . . . 1 . . . . . . . . Slashing Weapon 1 | . . . . . . . . 1 . . . . Piercing Weapon . | . . . . . . . . . . . . . Special Melee Weapon 1 | . . . . . . . . 1 . . . . Unidentified Prototypes 6 | . . . 5 . 1 . . . . . . . Parts Lost 27 | . . . 3 . 1 1 4 10 . 6 2 . Power 3 | . . . 1 . . . . 1 . . 1 . Propulsion 6 | . . . 1 . . . . 4 . . 1 . Utility 6 | . . . . . 1 1 1 1 . 2 . . Weapon 12 | . . . 1 . . . 3 4 . 4 . . Highest Loss Streak 4 | . . . 1 . 1 1 1 4 . 4 2 . To Critical Strikes 1 | . . . . . . . . 1 . . . . Average Backups 22 | 7 17 24 24 24 23 22 23 24 24 24 23 25 Power 1 | . 1 2 1 1 1 1 1 1 1 1 1 2 Propulsion 5 | 3 3 3 5 5 6 7 7 7 7 6 4 6 Utility 8 | . 4 9 9 10 9 7 7 9 11 12 10 9 Weapon 5 | 1 7 8 7 6 5 6 5 4 2 2 4 5 Tool/Special . | . . . . . . . . . . . . . Unused Backups 67 | 1 3 3 17 3 6 . 6 8 . 5 1 14 Power 4 | . . . 1 . . . . 1 . . . 2 Propulsion 13 | . 3 . 2 . 1 . 1 1 . 1 . 4 Utility 30 | 1 . 2 6 1 3 . 2 4 . 4 1 6 Weapon 19 | . . 1 8 1 2 . 3 2 . . . 2 Tool/Special 1 | . . . . 1 . . . . . . . . Average Slot Usage (%) 98 | . 100 100 99 100 99 99 92 97 100 99 99 100 Engine 10 | . 14 14 10 11 9 9 9 8 9 9 4 . Treads 25 | . 28 28 33 33 27 27 27 25 . . 4 9 Wheel 2 | . . . . . . . . 1 27 27 22 18 Device 5 | . 7 . 4 . 7 9 2 7 9 11 8 9 Storage 10 | . 14 14 11 11 9 9 9 9 9 9 9 9 Hackware 1 | . . . . . . 6 2 1 . 3 9 . Protection 7 | . 6 14 6 11 10 2 6 8 9 . . 9 Energy Cannon 6 | . 13 5 9 . . . . 1 . 13 28 20 Ballistic Gun 22 | . 14 5 20 32 35 33 34 29 36 10 . 9 Launcher 1 | . . 16 . . . . . . . . . . Peak Build Rating 46 | 9 9 10 24 24 34 33 35 40 34 40 46 42 Average Rating 23 | 6 8 9 20 22 29 31 33 34 34 37 41 41 On Entrance 24 | . 7 9 9 22 23 32 32 34 34 34 40 43 Naked Turns . | . . . . . . . . . . . . . Heaviest Build 128 | 15 93 94 104 104 114 109 126 114 108 118 128 121 Greatest Support 70 | 40 40 40 60 60 60 60 63 70 36 36 36 24 Greatest Overweight (x) 5 | 1 2 2 1 1 5 1 2 2 2 3 5 5 Average Overweight (x) 1 | . 1 2 1 1 1 1 1 1 2 2 3 4 Largest Inventory Capacity 25 | 8 25 25 25 25 25 25 25 25 25 25 25 25 Average Capacity 24 | 7 24 25 25 25 25 25 25 25 25 25 25 25 Most Carried 25 | 8 25 25 25 25 25 25 25 25 25 25 25 25 Average Carried 22 | 7 17 24 24 24 24 24 24 24 24 24 23 24 Final Capacity 25 | 8 25 25 25 25 25 25 25 25 25 25 25 25 Final Carried 25 | 8 25 23 25 25 25 25 24 25 25 25 25 25 Class Distribution -------------------- 37% | Scavenger-Tank 28% | Mutant 15% | Tank 5% | Gunner 5% | Bothacker-Gunner 3% | Scavenger-Gunner Dominant Class ---------------- Mutant | -10/Materials Mutant | -10/Mines Tank | -9/Materials Tank | -9/Mines Scavenger-Tank | -8/Materials Scavenger-Tank | -8/Garrison Scavenger-Tank | -8/Materials Scavenger-Tank | -8/Garrison Bothacker-Tank | -8/Materials Bothacker-Gunner | -8/Garrison Scavenger-Gunner | -8/Materials Scavenger-Tank | -8/Garrison Resources | -11 -10 -10 -9 -9 -8 -8 -8 -8 -8 -8 -8 -8 ----------- Run | Yrd Mat Min Mat Min Mat Gar Mat Gar Mat Gar Mat Gar Matter Collected 7915 | 294 274 118 953 130 1114 563 1109 2166 . 881 284 29 Remotely . | . . . . . . . . . . . . . Salvage Created 11409 | 339 1169 27 1958 360 1983 782 1666 2283 . 556 286 . Parts 632 | 31 71 1 110 18 111 51 94 101 . 30 14 . Haulers Intercepted 17 | . 2 . 6 . 6 . 3 . . . . . Recyclers Shooed 7 | . 4 . 1 . . . 1 . . . 1 . Parts Field Recycled . | . . . . . . . . . . . . . Retrieved Matter . | . . . . . . . . . . . . . Parts Self-Destructed . | . . . . . . . . . . . . . Prevented . | . . . . . . . . . . . . . Kills | -11 -10 -10 -9 -9 -8 -8 -8 -8 -8 -8 -8 -8 ------- Run | Yrd Mat Min Mat Min Mat Gar Mat Gar Mat Gar Mat Gar Combat Hostiles Destroyed 193 | . 19 2 30 6 30 20 29 41 . 11 5 . Melee 2 | . . . . . . . . 1 . . 1 . Guns 151 | . 7 . 18 6 30 20 29 33 . 8 . . Cannons 36 | . 12 . 11 . . . . 7 . 2 4 . AOE 3 | . . 2 . . . . . . . 1 . . Classes Destroyed 20 | 3 5 1 5 . 2 . . 3 . 1 . . Worker 7 | 4 1 . 1 . . . 1 . . . . . Builder 4 | . . . 1 . 1 . 2 . . . . . Tunneler 12 | 9 1 . 1 . . . 1 . . . . . Hauler 17 | . 2 . 6 . 6 . 3 . . . . . Recycler 13 | 1 5 1 2 1 1 . 2 . . . . . Mechanic 3 | . . . 1 1 . . 1 . . . . . Operator 4 | . 2 . 1 . . . 1 . . . . . Watcher 12 | . 2 . 5 . 5 . . . . . . . Swarmer 37 | . 6 . 4 . 5 6 6 10 . . . . Cutter 1 | . . . . . . . . . . 1 . . Grunt 83 | . 13 . 14 6 10 10 16 8 . 2 4 . Brawler 3 | . . . 1 . 1 . . 1 . . . . Duelist 13 | . . . 1 . 2 . 1 7 . 2 . . Sentry 36 | . . . 10 . 9 3 5 6 . 1 2 . Specialist 3 | . . . . . . . . 3 . . . . Hunter 7 | . . . . . 2 1 . 2 . 2 . . Programmer 7 | . . . . . . . . 3 . 4 . . Heavy 2 | . . . . . 1 . 1 . . . . . Behemoth 1 | . . . . . . . . 1 . . . . Assembled 2 | . . 2 . . . . . . . . . . Best Kill Streak 8 | 3 4 2 8 4 3 7 7 6 . 3 3 . Combat Bots Only 7 | . 3 1 4 4 3 7 7 6 . 3 3 . Max Kills in Single Turn 3 | 1 1 2 2 2 2 2 3 2 . 1 2 . Gunslinging 1 | . . . . 1 1 1 1 1 . . . . Exploded 1 | . . 1 . . . . . . . 1 . . Melee 1 | . . . . . . . . 1 . . 1 . Uniques/NPCs Destroyed . | . . . . . . . . . . . . . Combat | -11 -10 -10 -9 -9 -8 -8 -8 -8 -8 -8 -8 -8 -------- Run | Yrd Mat Min Mat Min Mat Gar Mat Gar Mat Gar Mat Gar Hostile Shots Fired 779 | . 55 1 108 10 81 90 106 216 . 69 32 11 Missed 230 | . 18 . 35 3 28 21 26 66 . 22 10 1 Hits 549 | . 37 1 73 7 53 69 80 150 . 47 22 10 Melee 7 | . . . . . 2 . . 5 . . . . Projectile 542 | . 37 1 73 7 51 69 80 145 . 47 22 10 AOE 2 | . . . . . . . . . . 2 . . Critical Strikes 20 | . . . 5 . 2 2 2 5 . . 3 1 Damage Taken 8030 | . 385 54 1008 77 771 663 1286 2475 . 802 356 153 Core 764 | . 52 5 155 . 90 36 25 219 . 108 44 30 Absorbed by Shields 540 | . . . . . 208 262 70 . . . . . Regen/Repaired (Parts) 575 | . . . 129 . 101 . 268 51 . . 26 . Core Remaining (%) 79 | 100 . 77 . 61 . . . . . . . . Volleys Fired 871 | 153 76 3 97 10 81 33 79 225 . 85 29 . Largest 4 | 1 2 2 3 3 4 4 4 4 . 4 4 . Hottest 285 | 50 100 60 196 69 92 92 96 169 . 248 285 . Shots Fired 2043 | 153 149 6 291 30 321 126 307 445 1 168 46 . Gun 1559 | 153 72 . 175 30 321 126 299 283 1 99 . . Cannon 299 | . 76 . 116 . . . 8 32 . 41 26 . Launcher 6 | . . 6 . . . . . . . . . . Special 179 | . 1 . . . . . . 130 . 28 20 . Kinetic 1427 | . 72 . 191 30 321 126 307 303 1 76 . . Thermal 555 | 153 77 . 100 . . . . 142 . 57 26 . Explosive 6 | . . 6 . . . . . . . . . . Electromagnetic 7 | . . . . . . . . . . 7 . . Robot Hit Streak 52 | 10 8 2 20 8 20 17 16 52 . 7 5 . Robot Miss Streak 7 | 2 6 2 3 2 6 3 6 7 . 6 3 . Penetration Max 1 | . . . . . . . . 1 . 1 . . Secondary Targets 32 | . . . 1 2 5 7 5 11 . 1 . . Max Gunslinging Chain 2 | . . . 1 1 1 2 1 2 . 1 . . Shots Hit Robots 1217 | 34 84 3 186 15 206 77 191 319 . 74 28 . Core Hits 489 | 15 42 5 63 11 87 38 78 122 . 20 8 . Critical Kills 7 | . . . 2 . . 2 . 1 . 1 1 . Critical Parts Destroyed 8 | . . . 1 . 2 1 1 3 . . . . Critical Strikes 27 | 3 . . 3 . 2 4 1 12 . 1 1 . Burn 3 | 3 . . . . . . . . . . . . Meltdown 1 | . . . 1 . . . . . . . . . Destroy 15 | . . . 2 . 2 4 1 5 . 1 . . Blast 3 | . . . . . . . . 3 . . . . Smash 1 | . . . . . . . . . . . 1 . Sever 4 | . . . . . . . . 4 . . . . Melee Attacks 31 | . . . . 4 . 8 . 10 . 2 4 3 Impact 24 | . . . . 4 . 8 . 3 . 2 4 3 Slashing 1 | . . . . . . . . 1 . . . . Piercing . | . . . . . . . . . . . . . Sneak Attacks 6 | . . . . . . . . 6 . . . . Combat Hostiles . | . . . . . . . . . . . . . Follow-up Attacks . | . . . . . . . . . . . . . Damage Inflicted 19878 | 427 1387 273 3225 292 3073 1180 3214 5111 . 1262 434 . Guns 14143 | 425 515 . 1878 273 3051 1180 2968 2935 . 918 . . Cannons 3869 | . 841 . 1335 . . . 208 827 . 280 378 . Explosions 325 | . . 261 . . . . . . . 64 . . Melee 37 | . . . . . . . . . . . 37 . Ramming 158 | 2 31 12 12 19 22 . 38 3 . . 19 . Kinetic 14717 | . 515 . 2127 273 3051 1180 3176 3634 . 761 . . Thermal 4670 | 425 841 . 1086 . . . . 1474 . 466 378 . Explosive 261 | . . 261 . . . . . . . . . . Electromagnetic 35 | . . . . . . . . . . 35 . . Impact 37 | . . . . . . . . . . . 37 . Slashing . | . . . . . . . . . . . . . Piercing . | . . . . . . . . . . . . . Highest Corruption 8 | . 1 1 . . . . . 3 3 8 8 8 Average Corruption 3 | . 1 1 . . . . . 2 3 7 8 8 Corruption Purged . | . . . . . . . . . . . . . Corruption Blocked . | . . . . . . . . . . . . . Effects 133 | . 14 10 . . . . . 37 3 53 12 4 Message Errors 32 | . 3 3 . . . . . 11 . 13 1 1 Matter Fused 34 | . 3 4 . . . . . 12 1 11 2 1 Heat Flow Errors 17 | . 2 1 . . . . . 5 . 8 . 1 Energy Discharges 15 | . 2 . . . . . . 4 . 8 1 . Parts Rejected 2 | . . . . . . . . . . 1 1 . Data Loss (minor) 16 | . 3 . . . . . . 2 1 4 5 1 Data Loss (major) 7 | . . 2 . . . . . 1 . 4 . . Misfires 4 | . 1 . . . . . . 1 1 1 . . Alerts 2 | . . . . . . . . . . . 2 . Weapon Failures 4 | . . . . . . . . 1 . 3 . . Overload Shots . | . . . . . . . . . . . . . Overflow Damage 203 | . 23 15 22 . . . 52 91 . . . . Projectiles 183 | . 23 . 22 . . . 47 91 . . . . Explosions 15 | . . 15 . . . . . . . . . . Melee 5 | . . . . . . . 5 . . . . . Knockbacks 12 | . . . 2 . . . 2 8 . . . . Impact . | . . . . . . . . . . . . . Kinetic 11 | . . . 2 . . . 2 7 . . . . Secondary 1 | . . . . . . . . 1 . . . . Self-Inflicted Damage 50 | . . 41 . . . . . . . . 9 . Shots 3 | . . 3 . . . . . . . . . . Rammed 28 | 2 9 3 3 2 2 . 5 1 . . 1 . Targets Rammed 31 | 2 10 3 4 2 2 . 5 2 . . 1 . Kicked . | . . . . . . . . . . . . . Crushed 3 | . 1 . 1 . . . . 1 . . . . Highest Temperature 348 | 210 199 114 265 24 60 198 327 279 . 348 180 229 Average Temperature 63 | 77 54 30 59 7 15 52 79 86 . 92 60 229 Received Heat Transfer 2493 | . 156 . 492 42 151 266 543 618 . 18 207 . Effects 4 | . . . . . . . . 3 . 1 . . Energy Bleed 1 | . . . . . . . . . . 1 . . Interference 3 | . . . . . . . . 3 . . . . Siege Activations . | . . . . . . . . . . . . . Martial Activations . | . . . . . . . . . . . . . Shielding Activations . | . . . . . . . . . . . . . Robots Disrupted . | . . . . . . . . . . . . . Combat Hostiles . | . . . . . . . . . . . . . Robots Corrupted 1 | . . . . . . . 1 . . . . . Combat Hostiles . | . . . . . . . . . . . . . Parts Fried 1 | . . . . . . . 1 . . . . . Impact Corruptions 1 | . . . . . . . 1 . . . . . Robots Melted 2 | . . . 1 . . . . 1 . . . . Combat Hostiles 1 | . . . 1 . . . . . . . . . Parts Melted 8 | 4 2 . 1 . . . . . . . 1 . Heat Transferred 11367 | 1480 1776 . 2072 . . . . 4751 . 770 518 . Parts Sabotaged . | . . . . . . . . . . . . . Parts Stolen . | . . . . . . . . . . . . . Parts Stripped . | . . . . . . . . . . . . . Power Chain Reactions 1 | . . . . . . . . . . 1 . . Alert | -11 -10 -10 -9 -9 -8 -8 -8 -8 -8 -8 -8 -8 ------- Run | Yrd Mat Min Mat Min Mat Gar Mat Gar Mat Gar Mat Gar Maximum Alert Level 5 | . . . 1 . 1 3 2 5 3 4 3 1 Low Security (%) 57 | 100 100 100 53 100 95 . 44 . . . . . Level 1 12 | . . . 46 . 4 16 20 11 . . 1 100 Level 2 8 | . . . . . . 17 34 16 . 8 83 . Level 3 13 | . . . . . . 65 . 36 100 43 14 . Level 4 5 | . . . . . . . . 17 . 48 . . Level 5 2 | . . . . . . . . 19 . . . . High Security . | . . . . . . . . . . . . . Max Security . | . . . . . . . . . . . . . Peak Influence 2156 | 10 170 55 355 132 329 1010 492 2156 1051 1495 728 277 Initial 1051 | . . 55 . 132 13 213 492 294 1051 637 728 274 Average 357 | . 82 2 179 29 75 718 274 1017 1020 1126 585 276 Influence Increases 7933 | 70 639 33 1004 188 1035 847 854 1982 . 1078 200 3 Destroy 0b10 Robot/C 4200 | . 380 . 600 160 600 440 580 820 . 480 140 . Destroy 0b10 Robot/NC 395 | 70 65 5 90 10 70 . 55 30 . . . . Destroy Leader 798 | . 98 . 202 10 192 10 166 40 . 40 40 . Allied During Kill 87 | . . . . 3 . 11 . 10 . 58 5 . Successful Hack 121 | . 19 . 29 5 28 40 . . . . . . Select Force Hacks 30 | . 30 . . . . . . . . . . . Disable Machine 270 | . 45 . 60 . 90 15 15 30 . 15 . . Anti-Garrison Action 1750 | . . . . . . 300 . 1000 . 450 . . Destroy Structure 147 | . 2 28 8 . 10 16 8 22 . 35 15 3 Partial Spotted 15 | . . . . . 15 . . . . . . . Lose Combat Pursuer 120 | . . . 15 . 30 15 30 30 . . . . Influence Decreases 7656 | 70 495 177 664 492 742 166 1411 279 1175 564 1273 148 Entered New Map 3477 | . . 89 . 208 23 116 518 159 1105 344 767 148 Time Decay 2874 | 70 495 88 644 264 484 . 553 . 70 . 206 . Lost Part 260 | . . . 20 . 10 10 40 100 . 60 20 . Lost Ally 370 | . . . . 20 . 40 . 20 . 160 130 . Purge Threat 675 | . . . . . 225 . 300 . . . 150 . Squads Dispatched 25 | . 6 . 3 1 5 . 8 . . . 2 . Investigation 5 | . 2 . 1 . . . 2 . . . . . Extermination . | . . . . . . . . . . . . . Reinforcement 13 | . 4 . 2 . 2 . 3 . . . 2 . Assault 1 | . . . . 1 . . . . . . . . Garrison 6 | . . . . . 3 . 3 . . . . . Intercept . | . . . . . . . . . . . . . Searches Triggered . | . . . . . . . . . . . . . Construction Impeded . | . . . . . . . . . . . . . Haulers Reinforced . | . . . . . . . . . . . . . Active Scanning Responses . | . . . . . . . . . . . . . Cargo Convoy Interrupts . | . . . . . . . . . . . . . Stealth | -11 -10 -10 -9 -9 -8 -8 -8 -8 -8 -8 -8 -8 --------- Run | Yrd Mat Min Mat Min Mat Gar Mat Gar Mat Gar Mat Gar Distress Signals 22 | . 4 2 4 . 6 . 3 . . . 3 . Communications Jammed . | . . . . . . . . . . . . . Distress Signals . | . . . . . . . . . . . . . Times Spotted 297 | . 44 2 46 6 42 26 41 40 . 29 17 4 Peak Tracking Total 9 | . 6 1 4 3 4 5 4 9 . 4 6 4 Tactical Retreats 7 | . . . 1 . 2 1 2 1 . . . . Traps | -11 -10 -10 -9 -9 -8 -8 -8 -8 -8 -8 -8 -8 ------- Run | Yrd Mat Min Mat Min Mat Gar Mat Gar Mat Gar Mat Gar Traps Triggered 27 | . 1 . 2 . 1 8 1 6 . 6 1 1 Indirectly . | . . . . . . . . . . . . . Trap Hack Attempts 17 | . . . . . . . . 17 . . . . Triggered . | . . . . . . . . . . . . . Disarmed 2 | . . . . . . . . 2 . . . . Reprogrammed . | . . . . . . . . . . . . . Reused . | . . . . . . . . . . . . . Traps Extracted . | . . . . . . . . . . . . . Installed . | . . . . . . . . . . . . . Triggered . | . . . . . . . . . . . . . Machines | -11 -10 -10 -9 -9 -8 -8 -8 -8 -8 -8 -8 -8 ---------- Run | Yrd Mat Min Mat Min Mat Gar Mat Gar Mat Gar Mat Gar Machines Disabled 34 | . 3 . 5 . 6 5 1 8 . 6 . . Max in Single Turn 1 | . 1 . 1 . 1 1 1 1 . 1 . . Garrison Relay 11 | . . . . . . 2 . 4 . 5 . . Machines Repaired . | . . . . . . . . . . . . . Machines Dismantled 1 | . . . . . . 1 . . . . . . Machines Sabotaged . | . . . . . . . . . . . . . Overloaded Fab Kills . | . . . . . . . . . . . . . Hacking | -11 -10 -10 -9 -9 -8 -8 -8 -8 -8 -8 -8 -8 --------- Run | Yrd Mat Min Mat Min Mat Gar Mat Gar Mat Gar Mat Gar Machines Accessed 49 | . 5 1 12 1 12 5 4 1 1 3 4 . Terminals 34 | . 3 1 8 1 9 5 1 1 . 3 2 . Fabricators . | . . . . . . . . . . . . . Repair Stations 6 | . 1 . 2 . 1 . 2 . . . . . Recycling Units 1 | . 1 . . . . . . . . . . . Scanalyzers 4 | . . . 2 . 1 . . . . . 1 . Garrison Access 4 | . . . . . 1 . 1 . 1 . 1 . Total Hacks 121 | . 16 1 33 2 33 11 7 2 1 6 9 . Successful 59 | . 7 . 21 1 17 3 5 . 1 . 4 . Failed 62 | . 9 1 12 1 16 8 2 2 . 6 5 . Catastrophic 12 | . 1 1 2 . 3 2 1 . . 2 . . Database Lockouts . | . . . . . . . . . . . . . Manual 29 | . 8 1 7 1 4 2 6 . . . . . Terminals 76 | . 10 1 13 2 22 11 3 2 . 6 6 . Fabricators . | . . . . . . . . . . . . . Repair Stations 12 | . 3 . 4 . 3 . 2 . . . . . Recycling Units 3 | . 3 . . . . . . . . . . . Scanalyzers 23 | . . . 16 . 5 . . . . . 2 . Garrison Access 7 | . . . . . 3 . 2 . 1 . 1 . Terminal Hacks 23 | . 4 . 3 1 9 3 2 . . . 1 . Part Schematic 2 | . 1 . 1 . . . . . . . . . Robot Schematic 1 | . 1 . . . . . . . . . . . Prototype ID Bank 3 | . . . 1 . 2 . . . . . . . Branch Access Points 1 | . . . . . 1 . . . . . . . Emergency Access Points 2 | . . . . . 1 1 . . . . . . Unreport Threat 7 | . . . . . 4 . 2 . . . 1 . Locate Traps 1 | . 1 . . . . . . . . . . . Hauler Manifests 2 | . 1 . . . 1 . . . . . . . Registered Components 1 | . . . 1 . . . . . . . . . Zone Layout 1 | . . . . 1 . . . . . . . . Garrison Registry 1 | . . . . . . 1 . . . . . . Security Stations 1 | . . . . . . 1 . . . . . . Fabricator Hacks . | . . . . . . . . . . . . . Repair Station Hacks 6 | . . . 4 . 2 . . . . . . . Scan Component 3 | . . . 2 . 1 . . . . . . . Repair 3 | . . . 2 . 1 . . . . . . . Recycling Unit Hacks . | . . . . . . . . . . . . . Scanalyzer 21 | . . . 14 . 5 . . . . . 2 . Insert Component 10 | . . . 7 . 2 . . . . . 1 . Analyze 11 | . . . 7 . 3 . . . . . 1 . Garrison Access Hacks 4 | . . . . . 1 . 1 . 1 . 1 . Unlock Access 4 | . . . . . 1 . 1 . 1 . 1 . Unauthorized Hacks 5 | . 3 . . . . . 2 . . . . . Terminals 2 | . 2 . . . . . . . . . . . Skim 2 | . 2 . . . . . . . . . . . Fabricators . | . . . . . . . . . . . . . Repair Stations 2 | . . . . . . . 2 . . . . . Patch 2 | . . . . . . . 2 . . . . . Recycling Units 1 | . 1 . . . . . . . . . . . Tunnel 1 | . 1 . . . . . . . . . . . Scanalyzers . | . . . . . . . . . . . . . Garrison Access . | . . . . . . . . . . . . . Data Cores Recovered . | . . . . . . . . . . . . . Used . | . . . . . . . . . . . . . Hacking Detections 41 | . 4 1 11 1 10 4 2 1 1 3 3 . Full Trace Events 5 | . 1 . . . . 2 . . . 2 . . Feedback Events 1 | . 1 . . . . . . . . . . . Corruption 1 | . 1 . . . . . . . . . . . Feedback Blocked . | . . . . . . . . . . . . . Robot Schematics Acquired 1 | . 1 . . . . . . . . . . . Robots Built . | . . . . . . . . . . . . . Authchips . | . . . . . . . . . . . . . Time . | . . . . . . . . . . . . . Total Robot Build Rating . | . . . . . . . . . . . . . Part Schematics Acquired 12 | . 1 . 8 . 2 . . . . . 1 . Parts Built . | . . . . . . . . . . . . . Authchips . | . . . . . . . . . . . . . Time . | . . . . . . . . . . . . . Total Part Build Rating . | . . . . . . . . . . . . . Parts Repaired 3 | . . . 2 . 1 . . . . . . . Time 115 | . . . 64 . 51 . . . . . . . Parts Recycled . | . . . . . . . . . . . . . Recycled Matter . | . . . . . . . . . . . . . Retrieved Matter . | . . . . . . . . . . . . . Retrieved Components . | . . . . . . . . . . . . . Parts Scanalyzed 10 | . . . 7 . 2 . . . . . 1 . Part Schematics Acquired 10 | . . . 7 . 2 . . . . . 1 . Parts Damaged 1 | . . . 1 . . . . . . . . . Bothacking | -11 -10 -10 -9 -9 -8 -8 -8 -8 -8 -8 -8 -8 ------------ Run | Yrd Mat Min Mat Min Mat Gar Mat Gar Mat Gar Mat Gar Used RIF Installer 5 | . . . . . . 2 . 1 . 1 . 1 Command Fork 2 | . . . . . . 1 . . . . . 1 Patrol Navigation 1 | . . . . . . . . 1 . . . . Autooverride 1 | . . . . . . . . . . 1 . . Robots Hacked 23 | . . . . . . . . 2 . 11 10 . Non-combat 6 | . . . . . . . . 2 . . 4 . Combat 17 | . . . . . . . . . . 11 6 . Autooverrided 1 | . . . . . . . . . . . 1 . Robot Hacks Applied 25 | . . . . . . . . 2 . 12 11 . parse_system 1 | . . . . . . . . . . 1 . . drop_inventory 1 | . . . . . . . . . . . 1 . map_route 1 | . . . . . . . . . . . 1 . mark_security 1 | . . . . . . . . . . . 1 . find_garrison 1 | . . . . . . . . . . . 1 . amplify_resonance 2 | . . . . . . . . . . 1 1 . reboot_system 1 | . . . . . . . . . . 1 . . overwrite_iff 4 | . . . . . . . . . . 3 1 . formatsys_low 4 | . . . . . . . . 2 . . 2 . formatsys_high 9 | . . . . . . . . . . 6 3 . Relay Couplers Released 48 | . . . . . . 8 . 19 . 21 . . Machine Destruction 48 | . . . . . . 8 . 19 . 21 . . Attached 12 | . . . . . . . . 1 . 6 5 . Fabnet Peak Effective % . | . . . . . . . . . . . . . Robots Rewired 6 | . . . . . . 2 . 1 . 3 . . Allies Hacked 2 | . . . . . . . . . . 1 . 1 Hacks Repelled . | . . . . . . . . . . . . . Allies | -11 -10 -10 -9 -9 -8 -8 -8 -8 -8 -8 -8 -8 -------- Run | Yrd Mat Min Mat Min Mat Gar Mat Gar Mat Gar Mat Gar Total Allies 27 | . . . . 1 . 2 . 3 . 13 8 . Largest Group 5 | . . . . 1 . 2 . 3 2 5 4 3 Highest-Rated Group 75 | . . . . 31 . 40 . 64 46 75 63 39 Highest-Rated Ally 31 | . . . . 31 . 20 . 23 23 23 29 15 Total Orders 6 | . . . . . . . . 5 . . 1 . STAY 2 | . . . . . . . . 2 . . . . FOLLOW 1 | . . . . . . . . 1 . . . . AID 3 | . . . . . . . . 2 . . 1 . Ally Attacks 111 | . . . . 11 . 8 . 3 . 75 12 2 Total Damage 1591 | . . . . 186 . 186 . 34 . 962 206 17 Kills 19 | . . . . 2 . 2 . . . 13 2 . Allies Corrupted . | . . . . . . . . . . . . . Allies Melted 1 | . . . . . . . . . . . 1 . Intel | -11 -10 -10 -9 -9 -8 -8 -8 -8 -8 -8 -8 -8 ------- Run | Yrd Mat Min Mat Min Mat Gar Mat Gar Mat Gar Mat Gar Active Infowar (turns) 3055 | 350 1691 . . . . . . 65 . 949 . . Optics 636 | . . . . . . . . . . 636 . . Terrain 2 | 2 . . . . . . . . . . . . Seismic 2417 | 348 1691 . . . . . . 65 . 313 . . Robot Analysis Total . | . . . . . . . . . . . . . Derelict Logs Recovered 3 | . . 2 . 1 . . . . . . . . Drone Launches . | . . . . . . . . . . . . . Drone Recoveries . | . . . . . . . . . . . . . Exploration | -11 -10 -10 -9 -9 -8 -8 -8 -8 -8 -8 -8 -8 ------------- Run | Yrd Mat Min Mat Min Mat Gar Mat Gar Mat Gar Mat Gar Turns Passed 22467 | 915 3185 2359 3469 1359 2673 1678 1613 2863 140 1715 432 66 Spaces Moved 7798 | 335 938 675 1207 535 905 577 490 860 53 986 210 27 Core 6 | 6 . . . . . . . . . . . . Treads 6450 | 329 938 675 1207 535 905 577 490 794 . . . . Legs . | . . . . . . . . . . . . . Wheels 1342 | . . . . . . . . 66 53 986 210 27 Hover . | . . . . . . . . . . . . . Flight . | . . . . . . . . . . . . . Fastest Speed 50 | 50 160 320 240 240 240 246 243 120 120 120 120 150 Average Speed 234 | 158 305 320 240 240 243 246 249 231 120 134 144 151 Slowest Speed 560 | 160 320 320 240 240 560 246 323 320 120 135 165 165 Overloaded Moves . | . . . . . . . . . . . . . Propulsion Burnouts . | . . . . . . . . . . . . . Robots Hopped . | . . . . . . . . . . . . . Potential Cave-ins . | . . . . . . . . . . . . . Cave-ins Triggered . | . . . . . . . . . . . . . Exploration Rate (%) 62 | 14 98 98 99 98 67 82 42 78 4 81 40 10 Regions Visited 12 Branch Regions 2 Pre-discovered Areas 1 | . 1 . . . . . . . . . . . Known Exits Taken 6 | . . . 1 1 1 . 1 . 1 . 1 . Unknown Exits Taken 3 | 1 1 1 . . . . . . . . . . Scrap Searched 2 | . . 1 . 1 . . . . . . . . Spaces Dug 7 | . . . . . . 1 . . . . 3 3 Terrain Destroyed 79 | . . 40 2 . . 1 5 12 . 1 15 3 Melee 7 | . . . . . . 1 . . . . 3 3 Projectile 32 | . . . 2 . . . 5 12 . 1 12 . AOE 40 | . . 40 . . . . . . . . . . Terrain Rammed . | . . . . . . . . . . . . . Walls Destroyed . | . . . . . . . . . . . . . Machines Disabled . | . . . . . . . . . . . . . Actions | -11 -10 -10 -9 -9 -8 -8 -8 -8 -8 -8 -8 -8 --------- Run | Yrd Mat Min Mat Min Mat Gar Mat Gar Mat Gar Mat Gar Total 10258 | 562 1092 864 1565 584 1178 726 693 1264 130 1260 300 40 Wait 893 | 51 38 170 144 24 145 45 73 40 71 67 25 . Move 7787 | 334 937 674 1206 534 905 576 489 859 52 985 209 27 Hop . | . . . . . . . . . . . . . Pick Up 170 | 9 21 4 41 4 13 2 15 29 2 20 9 1 Fast Attach 30 | 9 . . 2 . 2 1 2 4 . 7 3 . Attach 40 | . . . 6 . 5 1 4 12 . 9 3 . Detach 1 | . . . . . . . 1 . . . . . Swap 145 | 1 5 4 27 2 9 18 8 34 2 18 14 3 Drop 143 | 3 5 6 38 4 16 4 17 24 3 19 3 1 Fire 871 | 153 76 3 97 10 81 33 79 225 . 85 29 . Melee 31 | . . . . 4 . 8 . 10 . 2 4 3 Ram 1 | . . . . . . . . . . . 1 . Kick . | . . . . . . . . . . . . . Crush 30 | 2 10 3 4 2 2 . 5 2 . . . . Escape Stasis 72 | . . . . . . 16 . 8 . 48 . . Rewire 14 | . . . . . . 14 . . . . . . Trap 17 | . . . . . . . . 17 . . . . Miscellaneous 13 | . . . . . . 8 . . . . . 5 Route ------- -11/Scrapyard -10/Materials (discovered 5 exits: *Mat x3 / *Min x2) -10/Mines (discovered 3 exits: *Mat x2 / [*Exi]) -9/Materials (discovered 4 exits: *Mat x3 / *Min) -9/Mines (discovered 3 exits: *Mat x2 / [*Zio]) -8/Materials (discovered 3 exits: [*Fac] / *Sto / Gar) -8/Garrison (discovered 4 exits: *Mat x4) -8/Materials (discovered 4 exits: [*Fac] / *Sto x2 / Gar) -8/Garrison (discovered 4 exits: [*Fac x3] / *Mat) -8/Materials -8/Garrison (discovered 4 exits: [*Fac x3] / *Mat) -8/Materials -8/Garrison History --------- Turn | Location | Event 12 | -11/Scrapyard | Discovered new exit (range 15) 916 | -11/Scrapyard | Entered Materials 931 | -10/Materials | Build established: Mutant 1334 | -10/Materials | Discovered new exit (range 8) 1593 | -10/Materials | Discovered new exit (range 15) 1874 | -10/Materials | Discovered new exit (range 10) 1954 | -10/Materials | Discovered new exit (range 9) 3132 | -10/Materials | Discovered new exit (range 10) 4101 | -10/Materials | Entered Mines 4118 | -10/Mines | Met a Derelict bent on vengeance 4122 | -10/Mines | Assembled infested the area 4127 | -10/Mines | Assisted by a Guerilla fighting off Assembled 4563 | -10/Mines | Learned Materials emergency access door positions 5475 | -10/Mines | Discovered new exit (range 9) 5510 | -10/Mines | Learned location of 1 exit from Materials 5526 | -10/Mines | Discovered new exit (range 10) 6041 | -10/Mines | Deemed a non-threat by the Exiles lab entrance 6041 | -10/Mines | Discovered new exit (range 5) 6460 | -10/Mines | Entered Materials 6460 | -9/Materials | Evolved 2 slots: Propulsion x1, Weapon x1 6461 | -9/Materials | Identified exit to Materials 6979 | -9/Materials | Build established: Gunner 6996 | -9/Materials | Discovered new exit (range 14) 7506 | -9/Materials | Discovered exit to Materials (range 16) 7613 | -9/Materials | Repaired Hvy. Assault Rifle 7925 | -9/Materials | Identified exit to Mines 8344 | -9/Materials | Build established: Tank 9053 | -9/Materials | Discovered exit to Materials (range 16) 9194 | -9/Materials | Repaired Med. Armor Plating 9929 | -9/Materials | Entered Mines 10076 | -9/Mines | Discovered exit to Materials (range 9) 10145 | -9/Mines | Discovered exit to Materials (range 12) 10151 | -9/Mines | A Derelict revealed a hidden shortcut to a safe place 10313 | -9/Mines | A weapon hastily lodged in a ceiling crevice suddenly fell to the ground 10689 | -9/Mines | Met a Derelict testing a Signal Generator 10703 | -9/Mines | Found Signal Generator 10733 | -9/Mines | Received a Rocket Launcher from a helpful Derelict 10814 | -9/Mines | Learned 4 Materials zone layouts 11017 | -9/Mines | Excavation squad dispatched 11017 | -9/Mines | A large section of the Mines collapsed 11288 | -9/Mines | Entered Materials 11288 | -8/Materials | Evolved 2 slots: Utility x1, Weapon x1 11289 | -8/Materials | Identified exit to Storage 11592 | -8/Materials | Build established: Scavenger-Tank 12971 | -8/Materials | Repaired Imp. Assault Rifle 13106 | -8/Materials | Discovered new exit (range 13) 13486 | -8/Materials | Garrison activated, responded to threat 13961 | -8/Materials | Identified exit to Garrison 13961 | -8/Materials | Entered Garrison 13999 | -8/Garrison | Triggered checkpoint 14095 | -8/Garrison | Garrison Relay disabled 14196 | -8/Garrison | Triggered checkpoint 14261 | -8/Garrison | Destroyed 7 combat bots 14341 | -8/Garrison | Triggered checkpoint 14576 | -8/Garrison | Triggered checkpoint 14619 | -8/Garrison | Garrison Relay disabled 14707 | -8/Garrison | Discovered new exit (range 15) 14933 | -8/Garrison | Triggered checkpoint 14974 | -8/Garrison | Discovered new exit (range 70) 14974 | -8/Garrison | Discovered new exit (range 63) 14974 | -8/Garrison | Discovered new exit (range 7) 14974 | -8/Garrison | Discovered new exit (range 29) 15244 | -8/Garrison | Learned Materials security intel 15271 | -8/Garrison | Triggered checkpoint 15361 | -8/Garrison | Installed Relay Interface Framework 15419 | -8/Garrison | Expanded RIF knowledge: Command Fork 15639 | -8/Garrison | Entered Materials 15942 | -8/Materials | Discovered exit to Storage (range 12) 16711 | -8/Materials | Discovered exit to Storage (range 16) 17035 | -8/Materials | Garrison activated, responded to threat 17083 | -8/Materials | Identified exit to Garrison 17088 | -8/Materials | Destroyed 7 combat bots 17132 | -8/Materials | Discovered new exit (range 15) 17252 | -8/Materials | Entered Garrison 17304 | -8/Garrison | Expanded RIF knowledge: Patrol Navigation 17434 | -8/Garrison | Triggered checkpoint 17467 | -8/Garrison | Garrison Relay disabled 17760 | -8/Garrison | Lost 4 parts (1p3w) 17850 | -8/Garrison | Triggered checkpoint 17866 | -8/Garrison | Triggered checkpoint 17981 | -8/Garrison | Spotted B-75 Beast 18028 | -8/Garrison | Core integrity fell below 50% 18028 | -8/Garrison | Destroyed B-75 Beast 18079 | -8/Garrison | Discovered new exit (range 13) 18639 | -8/Garrison | Triggered checkpoint 18676 | -8/Garrison | Garrison Relay disabled 19045 | -8/Garrison | Triggered checkpoint 19077 | -8/Garrison | Build established: Scavenger-Gunner 19174 | -8/Garrison | Discovered new exit (range 11) 19182 | -8/Garrison | Triggered checkpoint 19234 | -8/Garrison | Discovered new exit (range 5) 19368 | -8/Garrison | Triggered checkpoint 19418 | -8/Garrison | Garrison Relay disabled 19555 | -8/Garrison | Triggered checkpoint 19647 | -8/Garrison | Discovered new exit (range 8) 19676 | -8/Garrison | Build established: Scavenger-Tank 19752 | -8/Garrison | Triggered checkpoint 19804 | -8/Garrison | Garrison Relay disabled 20115 | -8/Garrison | Entered Materials 20115 | -8/Materials | Accompanied by 2 allies 20128 | -8/Materials | Identified exit to Garrison 20255 | -8/Materials | Entered Garrison 20255 | -8/Garrison | Accompanied by 2 allies 20290 | -8/Garrison | Build established: Bothacker-Tank 20355 | -8/Garrison | Lost 4 parts (2u2w) 20374 | -8/Garrison | Triggered checkpoint 20424 | -8/Garrison | Garrison Relay disabled 20571 | -8/Garrison | Triggered checkpoint 20590 | -8/Garrison | Triggered checkpoint 20591 | -8/Garrison | Build established: Bothacker-Gunner 20598 | -8/Garrison | Triggered checkpoint 20603 | -8/Garrison | Core integrity fell below 20% 20708 | -8/Garrison | Triggered checkpoint 20721 | -8/Garrison | Discovered new exit (range 6) 20745 | -8/Garrison | Discovered new exit (range 10) 20775 | -8/Garrison | Triggered checkpoint 20804 | -8/Garrison | Garrison Relay disabled 20973 | -8/Garrison | Triggered checkpoint 21033 | -8/Garrison | Triggered checkpoint 21138 | -8/Garrison | Triggered checkpoint 21166 | -8/Garrison | Garrison Relay disabled 21206 | -8/Garrison | Garrison Relay disabled 21261 | -8/Garrison | Discovered new exit (range 10) 21464 | -8/Garrison | Build established: Bothacker-Skirmisher 21579 | -8/Garrison | Triggered checkpoint 21622 | -8/Garrison | Expanded RIF knowledge: Autooverride 21632 | -8/Garrison | Discovered new exit (range 9) 21675 | -8/Garrison | Garrison Relay disabled 21970 | -8/Garrison | Entered Materials 21970 | -8/Materials | Accompanied by 3 allies 22135 | -8/Materials | Lost 4 allies 22141 | -8/Materials | Build established: Bothacker-Gunner 22216 | -8/Materials | Lost 4 allies 22394 | -8/Materials | Identified exit to Garrison 22402 | -8/Materials | Entered Garrison 22402 | -8/Garrison | Accompanied by 3 allies 22428 | -8/Garrison | Expanded RIF knowledge: Command Fork 22468 | -8/Garrison | Destroyed by P-60 Hacker with Shock Rifle Last Messages --------------- GOAL=ESCAPE 22404_ Dropped Hcp. Matter Pod. 22405_ O=KKTX8QEOKK/S9G&W>W=PEPOW> 22405_ Extracted 29 matter. 22405_ Acquired Hcp. Matter Pod. 22406_ Detecting nearby RIF Installer. 22421_ System corrupted: Matter fused (-7). 22422_ Triggered Alarm Trap. 22422_ An alarm sounds. Initiating installation procedure... 22428_ Expanded RIF knowledge: Command Fork. 22447_ System corrupted: Component data lost. 22455_ Dismantling Phase Generator with Plasma Cutter. 22462_ P-60 Hacker hacks Defender 3c, rebooting. 22463_ P-60 Hacker fails to hack Machinist 3a. 22464_ Machine disabled. 22464_ Dismantling Phase Generator with Plasma Cutter. 22467_ System corrupted: Heat flow error (+264). 22467_ P-60 Hacker fails to hack Machinist 3a. 22467_ Dismantling Phase Generator with Plasma Cutter. Map ----- +----------------------------------------------------+ | ?????????????????????????????????????????????????? | | ?????????????????????????????????????????????????? | | ?????????????????????????????????????????????????? | | ?????????????????????????????????????????????????? | | ?????????????????????????????????????????????????? | | ?????????????????????????????????????????????????? | | ?????????????????????????????????????????????????? | | ?????????????????????????????????????????????????? | | ???????????????????????????????? ??????????????? | | ???????????????????????????????# ??????????????? | | ???????????????????????????????# ??????????????? | | ???????????????????????????????# ??????????????? | | ???????????????????????????????# ??????????????? | | ???????????????????????#p??????# ??????????????? | | ???????????????????????# ??????# ??????????????? | | ???????????????????????# ??????# #?????????????? | | ???????????????????????# ??????# #?????????????? | | ???????????????????????# ??????# #?????????????? | | ???????????????????????#p??????# #?????????????? | | ???????????????????##### #####?# #?????????????? | | ???????????????????# #?# #?????????????? | | ???????????????????# #?# #?????????????? | | ???????????????????# #?# ###???????????? | | ???????????????????# " ### ##??????????? | | ???????????????????#"" """pp # "#??????????? | | ???????????????????#" "@ #?# "#######????? | | ???????????????????#" Y ########"# """"#????? | | ???????????????????#" a "#????? | | ???????????????????#""""" m ########## """"#????? | | ???????????????????#####"#####????????#######????? | | ???????????????????????#"????????????????????????? | | ???????????????????????##????????????????????????? | | ?????????????????????????????????????????????????? | | ?????????????????????????????????????????????????? | | ?????????????????????????????????????????????????? | | ?????????????????????????????????????????????????? | | ?????????????????????????????????????????????????? | | | | | | | | | | | | | | | | | | | | | | | | | | | +----------------------------------------------------+ Best States ------------- Heat Dissipation 59 Energy Generation 15 Energy Capacity 280 Matter Stores 300 Matter Capacity 300 Sight Range 20 Terrain Scan Density 10 Armor Coverage 600 Evasion (%) 40 Recoil Reduction 4 Offensive Hacking 10 Relay Coupler Types 2 Relay Coupler Value 36 Item Schematics ----------------- Lgt. Treads | -10/Materials | Hacked Arm. Wheel | -9/Materials | Hacked Imp. Flight Unit | -9/Materials | Scanalyzed Salvage Targeting Computer | -9/Materials | Scanalyzed Signal Interpreter | -9/Materials | Scanalyzed Weight Redist. System | -9/Materials | Scanalyzed Heat Sink | -9/Materials | Scanalyzed Autogun | -9/Materials | Scanalyzed Datajack | -9/Materials | Scanalyzed Imp. VTOL Module | -8/Materials | Scanalyzed Hacking Suite | -8/Materials | Scanalyzed Adv. Weight Redist. System | -8/Materials | Scanalyzed Robot Schematics ------------------ M-13 Machinist | -10/Materials | Hacked Fabricated ------------ Nothing Repaired ---------- Hvy. Assault Rifle | 62% | -9/Materials Med. Armor Plating | 28% | -9/Materials Imp. Assault Rifle | 27% | -8/Materials Alien Tech Used ----------------- None Achievements -------------- None Challenges ------------ None Game ------ Seed MultinovaNavigationTerrabomb Manual? 0 Play Time 02:39:53 Cumulative 910.6 hours Start 2025.06.14 @ 01:15:14 End 2025.06.14 @ 16:27:48 Sessions 276 Manual Loads 0 Difficulty Rogue Special Mode None Game No. 484 Rogue 484 Adventurer 0 Explorer 0 Win Type - Total 23 Types 10/4/3/0/1/1/2/2/0/0 Lore% 84 Gallery% 85 Achievement% 83 Wizard Run 0 Options --------- Layout 0 ASCII 0 Keyboard 0 Movement Numpad Keybinds 0 Fullscreen 2 Font 24/Smallcaps Map View 76x50 Zoom Use 0% Tactical HUD 1 Map Filters SHIFT_HUE(45) Filters SHIFT_HUE(315) Steam 1 RUN: fd0f8f61-be57-4b6d-90e1-3fbec329aefb